bitfinex/quotes_SOLUSD_20240616
["timestamp","ask_amount","ask_price","bid_price","bid_amount"]
[1718547131819,8.18664947,146.53,146.43,20.56]
[1718547132020,8.18664947,146.53,146.48,2.5258]
[1718547132224,0.61134947,146.53,146.49,2.5256]
[1718547132919,13.23674947,146.53,146.48,2.5258]
[1718547133126,13.23674947,146.53,146.46,2.5262]
[1718547133127,22.7292,146.51,146.46,2.5262]
[1718547133293,29.3328,146.51,146.46,2.5262]
[1718547133494,2.5255,146.5,146.42,16.5802]
[1718547133720,2.5255,146.5,146.46,2.5262]
[1718547134015,0.17,146.49,146.45,2.5264]
[1718547134320,0.34,146.49,146.45,2.5264]
[1718547134910,7.9173,146.49,146.44,2.5265]
[1718547135109,2.5259,146.48,146.44,2.5265]
[1718547135501,22.7339,146.48,146.43,2.5267]
[1718547135703,2.526,146.48,146.39,20.56]
[1718547135905,2.526,146.48,146.44,2.5266]
[1718547136106,2.8659,146.49,146.45,2.5263]
[1718547136525,9.2991,146.51,146.47,2.526]
[1718547136822,2.5256,146.5,146.46,2.5262]
[1718547137019,14.3501,146.51,146.46,2.5262]
[1718547137198,7.5769,146.5,146.45,2.5263]
[1718547137396,7.5769,146.5,146.39,20.56]
[1718547137397,15.1547,146.49,146.44,2.5265]
[1718547138007,2.5259,146.48,146.44,2.5265]
[1718547138415,1.5812,146.49,146.39,40.56]
[1718547138619,4.1069,146.49,146.45,2.5263]
[1718547138830,2.5259,146.48,146.44,2.5264]
[1718547139141,0.17,146.47,146.38,16.5802]
[1718547139344,2.5264,146.45,146.41,2.527]
[1718547139524,5.0519,146.48,146.35,25.29384083]
[1718547139720,5.49,146.44,146.42,2.5268]
[1718547140340,5.49,146.43,146.42,2.5268]
[1718547140831,22.7339,146.48,146.42,2.5268]
[1718547141022,5.49,146.44,146.43,2.5266]
[1718547141229,5.49,146.44,146.43,2.5268]
[1718547141541,2.8661,146.47,146.36,20.56]
[1718547141542,7.9183,146.47,146.36,20.56]
[1718547141714,2.5263,146.46,146.42,2.5269]
[1718547141911,17.684,146.46,146.35,25.29384083]
[1718547142134,7.579,146.46,146.36,20.56]
[1718547142328,15.1577,146.46,146.36,20.56]
[1718547142518,7.9186,146.47,146.36,20.56]
[1718547142827,7.9186,146.47,146.42,2.5268]
[1718547143025,2.5262,146.46,146.42,2.5268]
[1718547143245,7.5788,146.46,146.36,20.56]
[1718547143444,2.5262,146.46,146.42,2.5269]
[1718547143613,39.2039,146.48,146.43,2.5267]
[1718547143819,24.0478,146.48,146.37,0.17]
[1718547144154,26.5737,146.48,146.37,0.68]
[1718547144337,2.5261,146.47,146.43,2.5267]
[1718547144733,39.2036,146.48,146.43,2.5267]
[1718547144940,2.5262,146.47,146.43,2.5267]
[1718547145133,2.5264,146.45,146.41,2.5269]
[1718547145334,2.5264,146.46,146.36,20.56]
[1718547145552,2.5261,146.47,146.43,2.5267]
[1718547145747,7.5783,146.47,146.42,2.5268]
[1718547145949,2.5263,146.46,146.42,2.5268]
[1718547146325,2.5264,146.45,146.41,2.527]
[1718547146638,2.5264,146.45,146.41,2.5271]
[1718547146827,7.5793,146.45,146.36,20.56]
[1718547147027,7.5793,146.45,146.41,2.5271]
[1718547147330,2.5264,146.45,146.41,2.5271]
[1718547147730,2.5264,146.45,146.36,20.56]
[1718547147731,7.5791,146.46,146.36,20.56]
[1718547148052,7.5793,146.45,146.41,2.5271]
[1718547148243,2.5266,146.44,146.4,2.5272]
[1718547148864,2.5263,146.46,146.42,2.5269]
[1718547149035,5.0526,146.46,146.36,20.56]
[1718547149227,5.0526,146.46,146.4,2.5272]
[1718547149228,15.1587,146.45,146.4,2.5272]
[1718547149427,7.5793,146.45,146.4,2.5272]
[1718547149729,7.5793,146.45,146.36,20.56]
[1718547150129,2.5264,146.45,146.41,2.5271]
[1718547150433,7.5791,146.46,146.41,2.5269]
[1718547150743,2.5264,146.46,146.42,2.5269]
[1718547150952,2.5263,146.46,146.42,2.5269]
[1718547151248,10.1052,146.46,146.36,20.56]
[1718547151431,2.5265,146.45,146.41,2.527]
[1718547151958,7.5791,146.46,146.41,2.5269]
[1718547152149,7.5791,146.46,146.36,20.56]
[1718547152350,2.5264,146.45,146.41,2.527]
[1718547152960,25.2632,146.46,146.41,2.527]
[1718547153277,2.5265,146.45,146.41,2.527]
[1718547153753,17.6843,146.46,146.36,20.56]
[1718547153968,16.47,146.48,146.36,20.56]
[1718547154264,7.5785,146.47,146.43,2.5267]
[1718547154569,2.5262,146.46,146.42,2.5268]
[1718547154935,2.5261,146.47,146.43,2.5267]
[1718547155135,2.5261,146.47,146.42,2.5268]
[1718547155136,25.2614,146.47,146.42,2.5268]
[1718547155540,7.5785,146.47,146.36,20.56]
[1718547155776,2.5262,146.46,146.42,2.5268]
[1718547156275,2.5263,146.46,146.42,2.5268]
[1718547156439,25.2613,146.47,146.42,2.5268]
[1718547156639,18.996,146.48,146.37,1.36510323]
[1718547156863,31.6257,146.48,146.43,2.5266]
[1718547157062,31.6257,146.48,146.37,1.36510323]
[1718547157063,16.47,146.48,146.36,20.56]
[1718547157269,16.47,146.48,146.38,0.17]
[1718547157449,2.5261,146.47,146.38,0.17]
[1718547157762,7.5788,146.46,146.42,2.5269]
[1718547158150,15.1576,146.46,146.41,2.527]
[1718547158668,15.1576,146.46,146.36,20.56]
[1718547158669,7.5788,146.46,146.36,20.56]
[1718547158871,7.5788,146.46,146.41,2.527]
[1718547159063,7.5788,146.46,146.42,2.5269]
[1718547159250,22.7368,146.46,146.36,20.56]
[1718547159455,12.6323,146.45,146.35,37.1402]
[1718547159763,7.5795,146.45,146.35,37.1402]
[1718547159967,22.737,146.46,146.41,2.527]
[1718547160171,7.5784,146.47,146.43,2.5267]
[1718547160340,7.5784,146.47,146.35,37.1402]
[1718547160341,15.1569,146.47,146.42,2.5268]
[1718547160548,2.5265,146.45,146.41,2.527]
[1718547160756,25.2633,146.46,146.41,2.527]
[1718547160966,2.5264,146.45,146.41,2.527]
[1718547161473,5.49,146.43,146.4,2.5272]
[1718547162053,5.49,146.42,146.41,2.5271]
[1718547162462,7.579,146.46,146.42,2.5269]
[1718547162763,5.49,146.43,146.42,2.5269]
[1718547163145,5.49,146.43,146.41,2.527]
[1718547164072,5.49,146.43,146.38,5.49]
[1718547164257,5.49,146.43,146.41,2.527]
[1718547166567,2.5263,146.46,146.42,2.5269]
[1718547166753,5.49,146.43,146.41,2.527]
[1718547166953,5.49,146.42,146.41,2.527]
[1718547167968,2.5263,146.46,146.41,2.527]
[1718547168292,5.49,146.43,146.42,2.5269]
[1718547168444,5.49,146.43,146.37,1.99]
[1718547168648,2.5263,146.46,146.42,2.5269]
[1718547168853,5.49,146.43,146.41,2.527]
[1718547169990,5.49,146.43,146.37,1.99]
[1718547170190,2.5263,146.46,146.38,5.49]
[1718547170403,5.49,146.43,146.42,2.5269]
[1718547170566,5.49,146.43,146.41,2.5269]
[1718547170892,5.49,146.43,146.42,2.5269]
[1718547171190,5.49,146.43,146.41,2.527]
[1718547172598,2.5262,146.46,146.37,5.49]
[1718547172761,5.49,146.43,146.35,16.5802]
[1718547172958,2.5267,146.44,146.4,2.5273]
[1718547173158,5.49,146.42,146.4,2.5273]
[1718547173361,2.5267,146.44,146.4,2.5273]
[1718547173587,5.49,146.41,146.39,2.5273]
[1718547173761,7.58,146.44,146.4,2.5273]
[1718547173962,7.58,146.44,146.35,37.1402]
[1718547173963,22.7372,146.46,146.41,2.527]
[1718547174186,5.49,146.44,146.42,2.5269]
[1718547174761,2.5263,146.46,146.42,2.5269]
[1718547174976,5.052,146.48,146.39,5.49]
[1718547175182,5.49,146.45,146.43,2.5266]
[1718547175561,5.49,146.45,146.44,2.5266]
[1718547175766,1.5812,146.49,146.47,2.526]
[1718547176088,5.49,146.48,146.46,2.5261]
[1718547176269,5.49,146.47,146.46,2.5261]
[1718547176471,5.49,146.47,146.45,2.5263]
[1718547176869,2.5258,146.49,146.44,2.5265]
[1718547176870,22.7321,146.49,146.44,2.5265]
[1718547177073,5.49,146.47,146.44,2.5265]
[1718547177602,5.49,146.46,146.43,2.5267]
[1718547177770,5.49,146.46,146.44,2.5266]
[1718547177963,2.5259,146.48,146.44,2.5266]
[1718547178164,5.49,146.46,146.44,2.5266]
[1718547178365,5.49,146.47,146.45,2.5263]
[1718547178668,5.49,146.47,146.44,2.5264]
[1718547178985,28.5636,146.51,146.41,36.4675]
[1718547178986,2.19254947,146.53,146.43,5.49]
[1718547179194,5.49,146.49,146.47,2.5259]
[1718547179367,5.49,146.49,146.48,2.5259]
[1718547179569,5.49,146.49,146.47,2.5259]
[1718547179766,5.49,146.49,146.41,36.4675]
[1718547179767,5.49,146.48,146.46,2.5261]
[1718547179966,5.49,146.48,146.45,2.5263]
[1718547180385,2.5256,146.5,146.46,2.5262]
[1718547180696,5.49,146.48,146.46,2.5262]
[1718547181976,5.49,146.47,146.45,2.5264]
[1718547182172,7.5775,146.49,146.45,2.5264]
[1718547182173,5.49,146.46,146.45,2.5264]
[1718547182799,5.49,146.47,146.45,2.5264]
[1718547182981,2.5257,146.49,146.45,2.5264]
[1718547183297,5.49,146.46,146.41,15.9075]
[1718547183471,2.5254,146.51,146.47,2.526]
[1718547183666,5.49,146.49,146.47,2.526]
[1718547183885,5.49,146.49,146.48,2.5259]
[1718547184506,5.49,146.49,146.47,2.526]
[1718547184907,5.49,146.49,146.47,2.5259]
[1718547185406,5.49,146.49,146.46,2.5261]
[1718547185609,5.49,146.52,146.47,5.49]
[1718547185907,5.49,146.52,146.5,2.5255]
[1718547186288,13.0658,146.52,146.48,2.5259]
[1718547186496,5.49,146.52,146.47,5.49]
[1718547186708,5.49,146.52,146.5,2.5255]
[1718547186937,5.49,146.52,146.47,5.49]
[1718547187216,0.61134947,146.53,146.45,20.56]
[1718547187437,5.49,146.52,146.49,2.5256]
[1718547187591,2.5259,146.49,146.44,2.5264]
[1718547187787,5.49,146.48,146.43,5.49]
[1718547188292,2.5256,146.5,146.46,2.5262]
[1718547188611,5.49,146.48,146.46,2.5262]
[1718547188797,5.49,146.48,146.45,2.5263]
[1718547188994,22.7305,146.5,146.45,2.5263]
[1718547189309,2.5255,146.51,146.47,2.526]
[1718547189607,2.5254,146.51,146.47,2.526]
[1718547189824,8.0156,146.5,146.46,2.5261]
[1718547190510,5.49,146.51,146.47,2.5259]
[1718547190705,8.0154,146.51,146.47,2.5259]
[1718547190906,8.0155,146.51,146.47,2.5259]
[1718547191198,13.0663,146.51,146.47,2.5259]
[1718547191386,8.0155,146.51,146.47,2.5259]
[1718547191698,23.33754947,146.53,146.48,2.5259]
[1718547192013,5.49,146.51,146.48,2.5257]
[1718547192304,5.49,146.51,146.49,2.5257]
[1718547192509,3.13654947,146.53,146.49,2.5256]
[1718547192810,0.61134947,146.53,146.48,36.6602]
[1718547193032,0.61134947,146.53,146.52,2.5252]
[1718547194909,0.61134947,146.53,146.51,2.5252]
[1718547195303,0.61134947,146.53,146.48,16.1002]
[1718547195614,5.49,146.52,146.48,16.1002]
[1718547195788,0.61134947,146.53,146.51,2.5253]
[1718547195984,0.61134947,146.53,146.49,5.49]
[1718547196294,0.61134947,146.53,146.52,2.5252]
[1718547196708,0.61134947,146.53,146.51,2.5253]
[1718547196898,6.10134947,146.53,146.5,2.5254]
[1718547197232,6.10134947,146.53,146.48,16.1002]
[1718547197522,0.61134947,146.53,146.52,2.5252]
[1718547202196,0.61134947,146.53,146.52,8.0152]
[1718547202400,0.61134947,146.53,146.52,2.5252]
[1718547203521,0.61134947,146.53,146.52,8.0152]
[1718547204311,3.41968926,146.54,146.53,39.2369]
[1718547204510,3.41968926,146.54,146.53,18.5069]
[1718547206327,3.41968926,146.54,146.53,44.5569]
[1718547206531,3.41968926,146.54,146.53,23.9969]
[1718547207212,3.41968926,146.54,146.53,44.7269]
[1718547209322,3.41968926,146.54,146.53,45.2369]
[1718547210801,3.41968926,146.54,146.53,44.8969]
[1718547211024,3.41968926,146.54,146.53,39.0669]
[1718547211215,3.41968926,146.54,146.53,44.5569]
[1718547211426,3.41968926,146.54,146.53,18.5069]
[1718547211621,3.41968926,146.54,146.53,29.047]
[1718547213930,3.41968926,146.54,146.53,23.557]
[1718547214123,3.41968926,146.54,146.53,7.5751]
[1718547214732,3.41968926,146.54,146.53,13.0651]
[1718547215613,3.41968926,146.54,146.53,7.5751]
[1718547215826,3.41968926,146.54,146.53,13.0651]
[1718547216042,3.41968926,146.54,146.53,7.5751]
[1718547216334,3.41968926,146.54,146.53,13.0651]
[1718547216924,3.41968926,146.54,146.53,33.6251]
[1718547217647,3.41968926,146.54,146.53,13.0651]
[1718547219323,3.41968926,146.54,146.53,33.6251]
[1718547220017,3.41968926,146.54,146.53,13.0651]
[1718547226350,3.41968926,146.54,146.53,7.5751]
[1718547227522,3.41968926,146.54,146.47,41.55930151]
[1718547227738,3.41968926,146.54,146.47,5.49]
[1718547227739,8.90968926,146.54,146.47,5.49]
[1718547228045,8.90968926,146.54,146.48,5.0516]
[1718547228046,2.5252,146.53,146.48,5.0516]
[1718547228219,13.0653,146.53,146.49,7.577]
[1718547228417,8.0152,146.53,146.49,7.577]
[1718547228619,13.0654,146.53,146.49,2.5256]
[1718547228851,8.0152,146.53,146.49,7.5771]
[1718547229038,8.0152,146.53,146.5,2.5255]
[1718547229039,5.49,146.53,146.5,2.5255]
[1718547229239,5.49,146.52,146.49,2.5256]
[1718547229746,5.49,146.52,146.49,2.5257]
[1718547229941,5.49,146.5,146.44,5.49]
[1718547230143,2.1923,146.52,146.44,5.49]
[1718547230144,5.49,146.49,146.44,5.49]
[1718547230322,2.1923,146.52,146.47,5.49]
[1718547230519,5.49,146.52,146.47,5.49]
[1718547230724,3.41968926,146.54,146.5,5.49]
[1718547230938,3.41968926,146.54,146.51,2.5253]
[1718547231134,3.41968926,146.54,146.5,13.0664]
[1718547231732,3.41968926,146.54,146.5,5.49]
[1718547232045,3.41968926,146.54,146.53,2.525]
[1718547232945,3.41968926,146.54,146.52,5.0503]
[1718547233157,3.41968926,146.54,146.51,5.49]
[1718547233158,3.41968926,146.54,146.53,7.5751]
[1718547233348,3.41968926,146.54,146.53,13.0651]
[1718547234419,3.41968926,146.54,146.53,7.5751]
[1718547234638,3.41968926,146.54,146.53,13.0651]
[1718547236540,3.41968926,146.54,146.53,33.7951]
[1718547237537,3.41968926,146.54,146.53,7.5751]
[1718547237736,0.93217282,146.6,146.57,36.0337]
[1718547237948,0.93217282,146.6,146.59,33.792]
[1718547238159,0.93217282,146.6,146.59,33.962]
[1718547238932,0.93217282,146.6,146.59,33.792]
[1718547239137,0.93217282,146.6,146.59,33.962]
[1718547239344,0.93217282,146.6,146.59,28.302]
[1718547240369,0.93217282,146.6,146.59,2.524]
[1718547240552,0.93217282,146.6,146.58,5.0483]
[1718547240752,0.93217282,146.6,146.58,7.5724]
[1718547240953,0.93217282,146.6,146.57,15.4737]
[1718547240954,0.93217282,146.6,146.57,2.5243]
[1718547241152,0.93217282,146.6,146.55,5.0492]
[1718547241467,0.93217282,146.6,146.54,20.56]
[1718547241674,0.93217282,146.6,146.58,7.5723]
[1718547241866,0.93217282,146.6,146.57,7.5727]
[1718547242061,0.93217282,146.6,146.57,2.5242]
[1718547242450,0.93217282,146.6,146.58,2.5241]
[1718547242664,0.93217282,146.6,146.57,7.5728]
[1718547242965,0.93217282,146.6,146.57,2.5242]
[1718547243170,0.93217282,146.6,146.57,7.5729]
[1718547243468,0.93217282,146.6,146.58,2.5241]
[1718547243656,0.93217282,146.6,146.57,5.0487]
[1718547243657,0.93217282,146.6,146.59,7.572]
[1718547244258,0.93217282,146.6,146.59,2.524]
[1718547244657,0.93217282,146.6,146.58,5.0482]
[1718547244658,0.93217282,146.6,146.58,7.5722]
[1718547244972,0.93217282,146.6,146.58,5.0483]
[1718547245347,0.93217282,146.6,146.58,7.5724]
[1718547245963,0.93217282,146.6,146.59,2.524]
[1718547246372,0.93217282,146.6,146.58,7.5723]
[1718547246675,0.93217282,146.6,146.57,5.0487]
[1718547246874,0.93217282,146.6,146.58,5.0483]
[1718547247273,0.93217282,146.6,146.58,2.5241]
[1718547247455,0.93217282,146.6,146.58,7.5724]
[1718547247779,0.93217282,146.6,146.59,7.572]
[1718547248577,0.93217282,146.6,146.58,2.524]
[1718547249161,0.93217282,146.6,146.59,2.524]
[1718547249365,0.93217282,146.6,146.59,7.572]
[1718547250003,0.93217282,146.6,146.59,28.132]
[1718547250887,0.93217282,146.6,146.59,28.302]
[1718547253568,0.93217282,146.6,146.59,7.572]
[1718547254000,0.93217282,146.6,146.59,48.472]
[1718547254181,0.93217282,146.6,146.59,64.9907]
[1718547254896,0.93217282,146.6,146.59,44.4807]
[1718547255072,0.93217282,146.6,146.59,64.3107]
[1718547255685,0.93217282,146.6,146.59,43.7507]
[1718547256100,0.93217282,146.6,146.59,23.7507]
[1718547256961,0.93217282,146.6,146.59,7.572]
[1718547264497,0.93217282,146.6,146.59,2.524]
[1718547275610,1.74740515,146.62,146.61,2.5237]
[1718547275611,0.17040515,146.62,146.61,2.5237]
[1718547276211,0.17040515,146.62,146.61,45.232]
[1718547276412,0.17040515,146.62,146.61,45.742]
[1718547277392,0.17040515,146.62,146.61,45.572]
[1718547277608,0.17040515,146.62,146.61,45.742]
[1718547278513,0.17040515,146.62,146.61,65.742]
[1718547279518,0.17040515,146.62,146.61,60.262]
[1718547282104,1e-08,146.63,146.62,23.1735]
[1718547282305,3.01296751,146.66,146.65,23.003]
[1718547282614,3.01296751,146.66,146.65,23.683]
[1718547283204,3.01296751,146.66,146.65,23.513]
[1718547283804,3.01296751,146.66,146.65,26.525968]
[1718547284099,3.01296751,146.66,146.65,46.525968]
[1718547284428,2.6162155,146.68,146.67,23.1726]
[1718547284605,2.6162155,146.68,146.67,23.5126]
[1718547284925,2.6162155,146.68,146.67,23.6826]
[1718547285125,2.6162155,146.68,146.67,39.6075]
[1718547286030,0.00296424,146.7,146.69,23.1723]
[1718547286198,1.03481157,146.72,146.71,23.1719]
[1718547286523,1.03481157,146.72,146.71,23.6819]
[1718547287110,1.03481157,146.72,146.71,39.67963951]
[1718547287304,1.87413733,146.73,146.72,32.55023951]
[1718547287504,10.36038842,146.78,146.77,2.5209]
[1718547288220,0.8739633,146.94,146.78,15.9249]
[1718547288427,2.5186,146.91,146.87,2.5192]
[1718547288641,17.2839633,146.94,146.8,0.17]
[1718547288938,17.2839633,146.94,146.79,52.52211007]
[1718547288939,100.0,146.93,146.79,30.43621729]
[1718547289141,4.65576553,146.88,146.8,0.17]
[1718547289448,4.65566553,146.88,146.85,2.5195]
[1718547289628,5.0373,146.91,146.87,2.5192]
[1718547289829,2.5187,146.9,146.86,2.5193]
[1718547290037,5.0388,146.86,146.82,2.5199]
[1718547290220,2.5194,146.86,146.79,9.95621729]
[1718547290416,2.5189,146.89,146.81,0.17]
[1718547290617,2.5189,146.89,146.81,0.51]
[1718547290934,2.5189,146.89,146.85,2.5194]
[1718547291443,16.41,146.92,146.81,0.51]
[1718547291642,2.5187,146.9,146.87,2.5192]
[1718547291832,7.5561,146.9,146.86,2.5193]
[1718547292032,2.5187,146.9,146.86,2.5193]
[1718547292422,23.9653,146.92,146.88,2.5189]
[1718547292941,23.9652,146.92,146.88,2.5189]
[1718547293144,5.0373,146.91,146.82,20.48]
[1718547293346,7.5576,146.87,146.83,2.5197]
[1718547293525,7.5576,146.87,146.78,9.31498134]
[1718547293526,15.1153,146.87,146.8,20.0]
[1718547293722,5.039,146.86,146.78,9.31498134]
[1718547293932,2.5194,146.86,146.78,9.31498134]
[1718547294139,7.5582,146.86,146.78,9.31498134]
[1718547294331,12.597,146.86,146.78,9.31498134]
[1718547294534,15.1164,146.86,146.78,9.31498134]
[1718547294735,2.5195,146.85,146.78,9.31498134]
[1718547294940,5.039,146.86,146.78,29.79498134]
[1718547295140,2.5194,146.86,146.78,29.79498134]
[1718547295331,5.0388,146.86,146.82,2.52]
[1718547295535,7.5575,146.88,146.84,2.5197]
[1718547295731,2.5192,146.87,146.79,30.43621729]
[1718547295957,16.41,146.89,146.82,2.52]
[1718547296143,2.5195,146.85,146.82,2.52]
[1718547296358,2.5196,146.85,146.81,2.5202]
[1718547296552,2.5196,146.85,146.81,2.5201]
[1718547296738,25.1946,146.86,146.82,2.52]
[1718547297072,6.2743,146.9,146.78,20.48]
[1718547297229,16.41,146.86,146.77,9.314981]
[1718547297568,16.41,146.86,146.79,2.5204]
[1718547297569,7.5597,146.83,146.79,2.5204]
[1718547297732,2.52,146.82,146.78,2.5206]
[1718547297939,12.5996,146.83,146.79,2.5206]
[1718547297940,7.5598,146.83,146.79,2.5206]
[1718547298151,2.5201,146.82,146.78,2.5206]
[1718547298466,12.6004,146.82,146.77,2.5208]
[1718547298667,7.5604,146.82,146.77,2.5208]
[1718547298854,16.41,146.8,146.74,15.9249]
[1718547299028,16.41,146.8,146.75,2.5212]
[1718547299029,23.9714,146.8,146.75,2.5212]
[1718547299349,2.5206,146.79,146.75,2.5212]
[1718547299548,16.41,146.8,146.7,20.48]
[1718547299730,23.9713,146.8,146.75,2.5211]
[1718547299930,18.9305,146.8,146.76,2.521]
[1718547300135,18.9305,146.8,146.7,20.48]
[1718547300136,2.5208,146.78,146.69,20.48]
[1718547300659,2.521,146.77,146.73,2.5216]
[1718547301156,2.521,146.77,146.69,20.48]
[1718547301157,30.0,146.75,146.74,2.5214]
[1718547303542,30.0,146.75,146.71,2.5218]
[1718547303731,2.5208,146.78,146.7,20.0]
[1718547303929,17.6431,146.8,146.7,40.48]
[1718547304167,2.5205,146.8,146.76,2.521]
[1718547304731,7.5613,146.8,146.71,0.17]
[1718547304929,7.5613,146.8,146.71,0.34]
[1718547305263,22.6843,146.81,146.71,0.34]
[1718547305478,6.2209,146.85,146.74,0.17]
[1718547305631,6.2209,146.85,146.81,2.5201]
[1718547305941,6.2209,146.85,146.75,20.48]
[1718547305942,6.2209,146.85,146.76,0.17]
[1718547306133,6.2209,146.85,146.82,2.5199]
[1718547306336,6.2209,146.85,146.77,20.48]
[1718547306640,2.5198,146.84,146.8,2.5203]
[1718547306960,6.2209,146.85,146.82,2.52]
[1718547307166,18.9292,146.87,146.83,2.5198]
[1718547307343,16.41,146.87,146.83,2.5198]
[1718547307536,18.9292,146.87,146.83,2.5198]
[1718547307732,16.41,146.87,146.78,20.48]
[1718547307933,16.41,146.87,146.83,2.5198]
[1718547308139,18.9292,146.87,146.83,2.5198]
[1718547308333,2.5194,146.86,146.82,2.52]
[1718547308555,29.0063,146.87,146.79,2.5204]
[1718547308556,5.0395,146.84,146.79,2.5204]
[1718547308752,7.5593,146.84,146.79,2.5204]
[1718547308928,7.5589,146.85,146.76,20.17]
[1718547309133,2.5197,146.84,146.8,2.5203]
[1718547309462,16.41,146.87,146.72,42.0431]
[1718547309633,0.34,146.86,146.78,2.5206]
[1718547309834,18.9298,146.84,146.8,2.5203]
[1718547310047,16.41,146.84,146.75,20.0]
[1718547310253,16.41,146.84,146.81,2.5201]
[1718547310455,2.5196,146.85,146.81,2.5201]
[1718547310847,7.5587,146.85,146.8,2.5202]
[1718547311048,2.5197,146.84,146.8,2.5202]
[1718547311361,2.5206,146.79,146.75,2.5212]
[1718547311545,2.5206,146.79,146.74,20.0]
[1718547311546,16.41,146.81,146.77,2.5208]
[1718547311745,16.41,146.81,146.73,20.0]
[1718547311746,23.9708,146.81,146.76,2.5209]
[1718547312057,39.0925,146.81,146.76,2.521]
[1718547312263,7.5614,146.8,146.76,2.5211]
[1718547312443,2.5204,146.8,146.76,2.5211]
[1718547312632,39.0927,146.81,146.76,2.5209]
[1718547312633,41.6131,146.81,146.76,2.5209]
[1718547312967,41.6131,146.81,146.72,21.5631]
[1718547312968,7.5612,146.8,146.75,2.5211]
[1718547313135,7.5612,146.8,146.72,21.5631]
[1718547313136,23.9709,146.81,146.77,2.5209]
[1718547313332,23.9709,146.81,146.76,2.521]
[1718547313964,2.5204,146.8,146.72,21.5631]
[1718547314159,2.5204,146.8,146.76,2.521]
[1718547314368,6.2209,146.8,146.69,20.48]
[1718547314669,13.7823,146.8,146.7,40.48]
[1718547314848,7.5619,146.79,146.7,20.48]
[1718547315056,7.5619,146.79,146.74,2.5214]
[1718547315057,2.5208,146.78,146.74,2.5214]
[1718547315372,25.2067,146.79,146.74,2.5214]
[1718547315588,2.5208,146.78,146.74,2.5214]
[1718547315743,15.1241,146.79,146.74,2.5214]
[1718547316059,7.562,146.79,146.7,20.0]
[1718547316256,2.5207,146.78,146.74,2.5213]
[1718547316561,6.2209,146.8,146.68,21.5631]
[1718547316868,6.2209,146.8,146.6,100.0]
[1718547316869,39.1018,146.75,146.7,2.522]
[1718547317187,18.9314,146.75,146.66,20.0]
[1718547317352,39.1019,146.75,146.7,2.522]
[1718547317548,7.5646,146.74,146.69,2.5221]
[1718547317796,39.1021,146.75,146.7,2.5221]
[1718547318082,2.5215,146.74,146.7,2.5221]
[1718547318245,39.1021,146.75,146.7,2.5221]
[1718547318441,23.9741,146.75,146.7,2.5221]
[1718547318653,23.9741,146.75,146.65,15.4286]
[1718547318855,23.9741,146.75,146.7,2.5219]
[1718547319369,2.522,146.71,146.62,15.4286]
[1718547319566,2.5218,146.72,146.62,35.9086]
[1718547319745,2.5218,146.72,146.68,2.5224]
[1718547320178,23.8725,146.73,146.68,2.5224]
[1718547320562,2.5218,146.72,146.68,2.5224]
[1718547320754,2.5218,146.72,146.67,2.5226]
[1718547320755,2.522,146.71,146.67,2.5226]
[1718547321364,2.522,146.71,146.66,2.5227]
[1718547321365,2.5221,146.7,146.66,2.5227]
[1718547321775,7.5664,146.7,146.65,2.5228]